bitfinex/quotes_ETHUSD_20250217
["timestamp","ask_amount","ask_price","bid_price","bid_amount"]
[1739776536555,0.274,2697.0,2696.6,3.74496129]
[1739776537858,0.274,2697.0,2696.6,0.03659129]
[1739776538490,0.7604,2696.9,2695.7,0.8033]
[1739776538693,0.7604,2696.8,2696.7,0.03657351]
[1739776538992,0.7604,2696.8,2695.9,7.41846]
[1739776539191,0.91004,2696.7,2695.9,7.41846]
[1739776539578,0.91004,2696.7,2695.9,3.7092]
[1739776539784,0.91004,2696.7,2696.0,3.70918]
[1739776540329,0.91004,2696.7,2695.8,3.70945]
[1739776540548,0.7604,2695.8,2694.4,0.8033]
[1739776540796,3.54813198,2695.4,2694.4,4.51458]
[1739776540998,0.7604,2695.3,2694.4,4.51458]
[1739776541177,0.7604,2695.3,2694.4,4.51456]
[1739776541577,0.7604,2695.3,2694.2,3.71161]
[1739776541777,0.7604,2695.3,2694.2,0.03710748]
[1739776541978,0.277,2695.2,2694.8,3.71076]
[1739776542188,0.277,2695.2,2694.7,0.8033]
[1739776542386,0.277,2695.2,2694.4,4.5146]
[1739776543707,0.277,2695.2,2694.3,0.40352185]
[1739776544004,0.277,2695.2,2694.4,3.71134]
[1739776544179,3.54813198,2695.0,2694.4,4.49398819]
[1739776544383,3.54813198,2695.0,2694.5,3.71116]
[1739776544676,3.54813198,2695.0,2694.4,4.49398819]
[1739776544677,3.54813198,2695.0,2694.4,4.49399819]
[1739776544889,3.54813198,2695.0,2694.6,3.71102]
[1739776545214,3.54813198,2695.0,2694.4,4.49394819]
[1739776545416,0.277,2695.2,2694.6,3.71103]
[1739776545617,0.277,2695.2,2694.5,4.200997]
[1739776545770,0.277,2695.2,2694.6,3.71109]
[1739776546707,0.277,2695.2,2694.5,4.200897]
[1739776546896,0.277,2695.2,2694.5,0.489747]
[1739776547111,0.277,2695.2,2694.6,4.1311447]
[1739776547321,0.277,2695.2,2694.6,4.1311147]
[1739776547523,0.277,2695.2,2694.7,3.71098]
[1739776547700,0.277,2695.2,2694.8,3.71076]
[1739776548021,0.276,2695.1,2694.8,3.71075]
[1739776548216,0.276,2695.1,2695.0,3.71057]
[1739776548407,0.276,2695.1,2694.9,0.371075]
[1739776549155,0.276,2695.1,2694.5,0.7708]
[1739776550442,0.276,2695.1,2694.6,3.71112]
[1739776550601,0.276,2695.1,2694.5,0.7708]
[1739776550805,0.7604,2694.9,2694.4,3.71132]
[1739776551229,0.7604,2694.9,2694.4,4.453612]
[1739776551438,0.7604,2694.9,2694.4,0.742292]
[1739776552721,0.7604,2694.9,2694.4,4.453662]
[1739776552994,3.54813198,2694.7,2694.1,3.71173]
[1739776553622,3.54813198,2694.7,2694.2,0.03695278]
[1739776553931,3.54813198,2694.7,2693.9,4.48275]
[1739776554098,3.54813198,2694.7,2694.3,3.74846278]
[1739776554300,3.54813198,2694.7,2693.9,0.7708]
[1739776554531,3.54813198,2694.7,2694.4,0.03695278]
[1739776554734,3.54813198,2694.7,2694.2,3.71159]
[1739776554922,3.54813198,2694.7,2694.5,0.03749572]
[1739776555097,3.54813198,2694.7,2694.1,3.7117]
[1739776555297,3.54813198,2694.7,2694.6,0.03749572]
[1739776555595,3.97898518,2694.7,2694.6,0.03749572]
[1739776555803,3.97898518,2694.7,2694.2,3.71167]
[1739776556010,3.97898518,2694.7,2693.7,3.71235]
[1739776556011,3.54813198,2694.4,2693.7,3.71228]
[1739776556204,0.277,2694.3,2693.7,3.71228]
[1739776556429,0.277,2694.3,2693.8,3.71222]
[1739776556735,0.277,2694.3,2693.7,0.742477]
[1739776556936,0.7604,2694.2,2693.6,3.71249]
[1739776557110,0.7604,2694.2,2693.6,3.71243]
[1739776557303,0.7604,2694.2,2693.6,7.42485]
[1739776557699,0.7604,2694.2,2693.8,3.71219]
[1739776558614,0.7604,2694.2,2693.8,3.71214]
[1739776558828,0.7604,2694.2,2693.9,3.71201]
[1739776560041,0.7604,2694.2,2693.7,3.71227]
[1739776560243,3.54813198,2694.1,2693.5,3.71256]
[1739776560412,0.7604,2693.7,2693.3,3.71286]
[1739776560923,3.54813198,2693.8,2693.5,3.71254]
[1739776561121,0.7604,2693.9,2693.7,3.71235]
[1739776561854,0.7604,2693.9,2693.7,3.71225]
[1739776562044,0.7604,2693.9,2693.8,3.71222]
[1739776562214,0.7604,2693.9,2693.7,3.71225]
[1739776562737,0.7604,2693.9,2693.6,3.7125]
[1739776562931,0.7604,2693.9,2693.8,3.71222]
[1739776563443,0.7604,2693.9,2693.3,0.758]
[1739776563623,8.88813198,2694.1,2693.8,3.71222]
[1739776563808,0.276,2694.0,2693.9,3.71204]
[1739776564012,0.276,2694.0,2693.7,3.71223]
[1739776564446,0.276,2694.0,2693.6,3.7124]
[1739776565028,0.276,2694.0,2693.7,3.71233]
[1739776565227,0.276,2694.0,2693.9,3.71209]
[1739776565538,0.276,2694.0,2693.6,3.7125]
[1739776565867,0.276,2694.0,2693.7,3.71235]
[1739776567369,0.276,2694.0,2693.5,3.71262]
[1739776567521,0.7344532,2694.0,2693.5,3.71262]
[1739776567722,3.54813198,2693.8,2693.1,7.42618]
[1739776568028,3.54813198,2693.8,2693.1,3.71306]
[1739776568232,3.54813198,2693.8,2693.2,3.71303]
[1739776568650,3.54813198,2693.8,2693.3,0.03872444]
[1739776568832,4.30927151,2693.8,2693.2,3.71303]
[1739776569034,4.30927151,2693.8,2693.4,0.03891148]
[1739776569375,4.30927151,2693.8,2693.0,7.42646]
[1739776569582,0.7604,2693.7,2693.5,0.03891148]
[1739776569883,6.10113953,2693.8,2692.8,3.71351]
[1739776569884,0.7604,2693.4,2692.8,3.71351]
[1739776570879,0.7604,2693.4,2692.4,7.4721]
[1739776571016,0.7604,2693.4,2693.1,3.71306]
[1739776571354,0.276,2693.3,2693.0,3.71321]
[1739776571664,0.276,2693.3,2693.0,7.42646]
[1739776571867,0.276,2693.3,2693.2,3.71305]
[1739776572032,0.276,2693.3,2693.1,3.71317]
[1739776572723,0.276,2693.3,2693.2,3.71305]
[1739776572964,0.276,2693.3,2693.1,2.96908764]
[1739776573336,0.7604,2693.6,2693.3,3.71284]
[1739776573497,0.275,2693.4,2693.3,3.71284]
[1739776573664,0.275,2693.4,2693.2,3.71304]
[1739776574541,0.275,2693.4,2693.0,3.71326]
[1739776574542,0.275,2693.4,2693.0,3.71325]
[1739776575264,0.275,2693.4,2693.1,3.71311]
[1739776575466,0.275,2693.4,2693.3,3.71291]
[1739776576177,0.275,2693.4,2693.2,3.71298]
[1739776576578,0.7604,2693.6,2693.2,7.42596]
[1739776576755,0.276,2693.5,2692.7,0.7905]
[1739776576960,0.276,2693.5,2693.4,3.71277]
[1739776577172,0.275,2693.7,2693.6,3.71241]
[1739776577491,0.276,2693.8,2693.7,3.71236]
[1739776578191,3.7604,2694.4,2693.6,3.71248]
[1739776578360,0.7604,2694.1,2693.6,3.71248]
[1739776578774,0.7604,2694.1,2693.7,0.03896493]
[1739776579192,1.2188532,2694.1,2693.7,0.03896493]
[1739776579699,1.2188532,2694.1,2693.2,3.71295]
[1739776579700,0.7604,2694.0,2693.8,0.03896493]
[1739776579868,0.7604,2694.0,2693.2,3.71295]
[1739776580069,0.7604,2694.0,2693.9,0.03912525]
[1739776580272,0.7604,2694.0,2693.2,3.71295]
[1739776580472,3.54813198,2693.9,2693.2,3.71295]
[1739776580861,3.54813198,2693.9,2693.3,3.71287]
[1739776581262,0.7604,2693.8,2693.1,3.71307]
[1739776582264,3.7604,2693.8,2693.1,3.71307]
[1739776582465,0.7308532,2693.7,2693.0,3.71323]
[1739776582794,0.7604,2693.5,2692.9,3.71342]
[1739776583117,0.275,2693.4,2693.0,3.71326]
[1739776583346,0.275,2693.4,2692.7,3.71364]
[1739776583461,0.275,2693.4,2692.9,3.71339]
[1739776583657,0.275,2693.4,2692.5,0.7905]
[1739776583658,0.275,2693.4,2693.2,3.71305]
[1739776583856,0.275,2693.4,2693.0,3.71322]
[1739776584061,0.275,2693.4,2693.3,0.03915198]
[1739776584277,0.275,2693.4,2693.0,3.71322]
[1739776584475,0.275,2693.4,2693.3,0.03915198]
[1739776584715,0.275,2693.4,2693.1,3.71318]
[1739776584917,0.275,2693.4,2693.3,0.03915198]
[1739776585057,0.275,2693.4,2693.1,3.71315]
[1739776585254,0.275,2693.4,2693.0,7.42646]
[1739776585762,0.275,2693.4,2693.1,3.75225198]
[1739776586063,0.275,2693.4,2693.1,0.03915198]
[1739776586472,0.7333532,2693.4,2692.8,3.7135]
[1739776586660,0.7333532,2693.4,2693.2,0.03915198]
[1739776586860,0.7333532,2693.4,2692.9,3.71339]
[1739776587195,0.275,2693.4,2693.3,0.03915198]
[1739776587397,0.275,2693.4,2693.1,3.71311]
[1739776587591,0.275,2693.4,2693.3,0.03915198]
[1739776587917,0.275,2693.4,2693.1,3.71311]
[1739776588218,0.275,2693.4,2693.3,0.03915198]
[1739776588427,0.275,2693.4,2693.1,3.71311]
[1739776588628,0.275,2693.4,2693.3,0.03915198]
[1739776588978,0.275,2693.4,2693.3,3.71291]
[1739776589399,0.275,2693.4,2693.3,0.03941034]
[1739776589833,0.275,2693.4,2693.1,3.71311]
[1739776590036,0.275,2693.4,2693.3,0.03963302]
[1739776590333,0.275,2693.4,2692.9,3.71346]
[1739776590706,0.275,2693.4,2693.0,0.03963302]
[1739776590884,0.275,2693.4,2693.0,3.75295302]
[1739776591401,0.7604,2693.3,2693.0,0.03963302]
[1739776591736,4.30853198,2693.3,2692.7,3.71373]
[1739776591937,4.30853198,2693.3,2693.1,0.03963302]
[1739776592154,4.30853198,2693.3,2692.8,3.71347]
[1739776592334,4.30853198,2693.3,2693.2,0.03963302]
[1739776592541,5.3467205,2693.3,2692.8,3.71347]
[1739776592761,5.3467205,2693.3,2693.2,0.03963302]
[1739776592967,5.3467205,2693.3,2692.8,3.71347]
[1739776593121,1.79858852,2693.3,2693.2,0.03963302]
[1739776593311,1.79858852,2693.3,2692.7,3.71361]
[1739776593504,1.79858852,2693.3,2693.2,0.03963302]
[1739776593705,1.79858852,2693.3,2692.7,3.71361]
[1739776594019,1.79858852,2693.3,2692.8,3.71352]
[1739776594366,1.79858852,2693.3,2692.9,0.03963302]
[1739776594521,0.60549101,2693.2,2692.9,0.03963302]
[1739776594706,0.60549101,2693.2,2692.6,7.42761]
[1739776594903,0.60549101,2693.2,2693.0,0.03963302]
[1739776595131,0.60549101,2693.2,2692.6,3.7138]
[1739776595337,0.60549101,2693.2,2693.1,0.03963302]
[1739776595539,0.60549101,2693.2,2692.6,7.4276]
[1739776595742,0.60549101,2693.2,2693.1,0.03963302]
[1739776595922,0.60549101,2693.2,2692.6,3.7138]
[1739776596219,3.54813198,2693.0,2692.2,3.71436]
[1739776596436,3.54813198,2693.0,2692.2,3.71435]
[1739776596437,0.7604,2692.9,2692.2,3.71435]
[1739776596654,0.7604,2692.9,2692.3,3.71415]
[1739776596946,0.7604,2692.9,2692.3,7.42831]
[1739776597146,0.7604,2692.9,2692.3,3.71415]
[1739776597358,1.1912532,2692.9,2692.3,3.71415]
[1739776597955,1.1912532,2692.9,2692.1,3.71452]
[1739776598161,0.7604,2692.6,2691.9,3.71477]
[1739776598463,0.276,2692.5,2692.3,3.71429]
[1739776599062,0.276,2692.5,2692.4,0.04013206]
[1739776599228,0.276,2692.5,2692.4,3.75428206]
[1739776599554,0.276,2692.5,2692.4,0.04013206]
[1739776599969,0.276,2692.5,2692.3,3.7142]
[1739776600159,0.276,2692.5,2692.4,3.75525355]
[1739776600643,5.34,2692.9,2692.4,3.75525355]
[1739776600644,0.7604,2692.8,2692.4,3.75525355]
[1739776600942,0.276,2692.6,2692.4,3.75525355]
[1739776601245,0.276,2692.6,2692.5,3.71402]
[1739776601546,0.276,2692.6,2692.5,3.7550968]
[1739776603771,0.276,2692.6,2692.5,0.0410768]
[1739776604115,0.276,2692.6,2692.4,3.71404]
[1739776604436,0.276,2692.6,2692.5,0.04102331]
[1739776605023,0.276,2692.6,2692.3,3.71429]
[1739776605241,0.276,2692.6,2692.4,0.04103223]
[1739776605541,0.276,2692.6,2692.5,3.71402]
[1739776606038,0.276,2692.6,2692.5,0.04110355]
[1739776607155,0.276,2692.6,2692.5,3.75512355]
[1739776607865,0.276,2692.7,2692.6,3.71381]
[1739776608451,0.276,2692.7,2692.6,3.75491355]
[1739776608759,5.34,2692.9,2692.8,3.7136]
[1739776609262,0.7604,2693.4,2693.2,3.71293]
[1739776609442,0.276,2693.3,2693.2,3.71293]
[1739776609837,0.276,2693.3,2693.2,3.75376612]
[1739776610067,0.7604,2693.4,2693.2,3.75376612]
[1739776610068,5.34,2693.5,2693.3,3.71291]
[1739776610225,0.276,2693.4,2693.2,3.75376612]
[1739776610769,0.276,2693.4,2693.2,3.75379612]
[1739776611130,0.276,2693.4,2693.3,3.71291]
[1739776611336,0.276,2693.4,2693.3,3.75355897]
[1739776613066,5.34,2693.5,2693.3,3.75355897]
[1739776613273,0.276,2693.4,2693.3,0.04064897]
[1739776613476,0.276,2693.4,2693.2,3.71298]
[1739776613682,0.276,2693.4,2693.3,0.03982903]
[1739776613885,0.276,2693.4,2693.2,3.71298]
[1739776614086,0.276,2693.4,2693.3,0.03982903]
[1739776614385,0.276,2693.4,2693.1,3.71305]
[1739776614546,0.276,2693.4,2693.3,3.75277467]
[1739776614753,0.276,2693.4,2693.3,3.71291]
[1739776614966,0.276,2693.4,2693.3,3.75277467]
[1739776616770,0.276,2693.4,2693.3,0.03986467]
[1739776617074,0.276,2693.4,2692.8,4.48617]
[1739776617231,0.276,2693.4,2693.2,3.71297]
[1739776617438,0.276,2693.4,2693.3,0.03844094]
[1739776617651,0.276,2693.4,2693.2,3.71297]
[1739776617995,0.276,2693.4,2693.3,3.75135094]
[1739776618198,0.7604,2693.7,2693.4,3.71269]
[1739776618492,0.275,2693.6,2693.2,3.71296]
[1739776618640,0.275,2693.6,2693.5,0.03844094]
[1739776618836,0.275,2693.6,2693.2,3.71296]
[1739776619043,0.275,2693.6,2693.3,0.03844094]
[1739776619278,0.275,2693.6,2693.2,3.71296]
[1739776619477,0.275,2693.6,2693.4,0.03859242]
[1739776619658,0.275,2693.6,2693.0,3.71326]
[1739776619841,0.275,2693.6,2693.5,0.03859242]
[1739776620164,0.275,2693.6,2693.2,3.71298]
[1739776620375,0.275,2693.6,2693.5,0.03859242]
[1739776620556,0.275,2693.6,2693.2,3.71298]
[1739776620756,0.275,2693.6,2693.5,0.03859242]
[1739776620956,0.275,2693.6,2693.4,3.71277]
[1739776621168,0.275,2693.6,2693.5,0.03859242]
[1739776621554,0.275,2693.6,2693.3,3.71291]
[1739776621769,0.275,2693.6,2693.5,0.03853895]
[1739776621974,0.275,2693.6,2693.0,3.71327]
[1739776622196,3.82313198,2693.6,2693.5,0.03853895]
[1739776622396,0.7604,2693.5,2692.7,7.42733]
[1739776622592,3.54813198,2693.3,2692.8,3.71359]
[1739776622793,3.54813198,2693.3,2692.8,3.75212895]
[1739776623414,3.54813198,2693.3,2692.8,0.03853895]
[1739776623706,0.7604,2693.4,2693.0,3.71332]
[1739776623914,0.275,2693.3,2692.9,0.03853895]
[1739776624120,0.275,2693.3,2692.7,3.71373]
[1739776624422,3.82313198,2693.3,2693.0,0.03853895]
[1739776624568,0.7604,2693.2,2692.5,3.71394]
[1739776624774,3.82313198,2693.3,2692.3,3.71421]
[1739776624775,4.30853198,2693.0,2692.3,3.71421]
[1739776626611,4.30853198,2693.0,2692.4,3.71405]
[1739776626908,4.30853198,2693.0,2692.5,3.71402]
[1739776627108,4.30853198,2693.0,2692.3,3.71421]
[1739776627412,1.01068852,2692.9,2692.3,3.71421]
[1739776627629,0.7604,2692.8,2692.1,3.7145]
[1739776627911,3.54813198,2692.7,2691.9,3.71476]
[1739776628085,0.7604,2692.6,2691.9,3.71476]
[1739776628287,0.275,2692.5,2691.9,4.161706]
[1739776628486,0.275,2692.5,2692.2,3.71433]
[1739776628994,0.275,2692.5,2691.9,0.446866]
[1739776629196,0.275,2692.5,2692.4,3.71415]
[1739776629401,0.275,2692.5,2692.3,3.71428]
[1739776629603,0.275,2692.5,2692.4,0.03935001]
[1739776630516,0.275,2692.5,2692.2,3.71442]
[1739776630713,0.275,2692.5,2692.4,0.03794465]
[1739776630918,0.275,2692.5,2692.4,3.71415]
[1739776631214,0.275,2692.5,2692.4,0.03794465]
[1739776631942,0.275,2692.5,2692.4,3.75209465]
[1739776632082,0.275,2692.5,2692.4,0.03794465]
[1739776632925,0.275,2692.5,2692.4,3.75209465]
[1739776634766,0.7604,2692.8,2692.7,3.71374]
[1739776634897,5.34,2692.9,2692.8,3.7136]
[1739776635193,5.34,2693.3,2692.9,3.71336]
[1739776635394,0.275,2693.2,2692.8,0.03839035]
[1739776635589,5.34,2693.3,2692.7,0.7989]
[1739776635789,0.275,2693.2,2692.9,0.03839035]
[1739776635994,5.34,2693.3,2692.8,3.71354]
[1739776636194,0.275,2693.2,2693.0,0.03839035]
[1739776636429,0.755,2693.1,2692.6,3.71377]
[1739776636834,0.755,2693.1,2692.8,3.71354]
[1739776636994,0.912,2693.2,2693.0,3.71325]
[1739776636995,0.275,2693.2,2693.0,3.71325]
[1739776637228,5.615,2693.3,2693.1,3.71307]
[1739776637441,5.615,2693.3,2693.2,3.71305]
[1739776637731,5.34,2693.3,2693.2,3.71305]
[1739776637942,5.34,2693.3,2693.1,3.71307]
[1739776638353,0.275,2693.5,2693.1,3.71307]
[1739776638496,0.275,2693.5,2693.2,3.71298]
[1739776639044,0.275,2693.5,2693.1,3.71307]
[1739776639546,0.275,2693.5,2693.2,3.71304]
[1739776639845,0.755,2693.4,2692.9,3.71337]
[1739776640196,0.755,2693.4,2693.0,3.71326]
[1739776640455,0.275,2693.5,2693.0,4.535813]
[1739776640634,0.275,2693.5,2693.2,3.71301]
[1739776641927,0.275,2693.5,2693.4,3.71277]
[1739776642244,0.275,2693.6,2693.3,8.22455]
[1739776642450,0.275,2693.6,2693.3,4.51171]
[1739776642958,0.275,2693.6,2693.4,3.71275]
[1739776643135,0.275,2693.6,2693.3,4.51171]
[1739776643331,0.275,2693.6,2693.3,3.71281]
[1739776643732,0.275,2693.6,2693.4,0.0379001]
[1739776644523,1.03,2693.6,2693.1,3.7131]
[1739776645166,1.03,2693.6,2693.2,0.0379001]
[1739776647306,6.37,2693.6,2692.9,3.71337]
[1739776647450,0.637,2693.5,2693.0,3.7133]
[1739776647652,0.637,2693.5,2692.8,3.71347]
[1739776647884,0.637,2693.5,2692.9,0.03708015]
[1739776648087,0.755,2693.4,2692.9,0.03708015]
[1739776649289,0.755,2693.4,2692.9,3.75053015]
[1739776650496,0.755,2693.4,2692.9,0.03708015]
[1739776650683,0.21240066,2693.3,2692.9,3.75053015]
[1739776652053,0.21240066,2693.3,2692.9,0.03708015]
[1739776652489,0.7593,2693.2,2692.5,3.71395]
[1739776652689,6.0993,2693.2,2692.5,3.71395]
[1739776653070,6.0993,2693.2,2692.6,0.03708015]
[1739776653309,0.98598326,2693.1,2692.6,0.03708015]
[1739776653587,0.98598326,2693.1,2692.6,3.75089015]
[1739776653890,0.98598326,2693.1,2692.6,0.03708015]
[1739776654694,0.7593,2693.0,2692.4,3.71413]
[1739776654995,0.7593,2693.0,2692.7,0.03708015]
[1739776655294,0.7593,2693.0,2692.8,0.03708015]
[1739776655591,0.7593,2693.0,2692.4,3.71413]
[1739776655795,0.7593,2693.0,2692.9,0.03708015]
[1739776656016,1.46782833,2693.0,2692.4,3.71413]
[1739776656175,1.46782833,2693.0,2692.9,0.03708015]
[1739776656491,1.46782833,2693.0,2691.8,0.7851]
[1739776656492,0.7593,2692.9,2691.8,0.7851]
[1739776656710,0.274,2692.8,2691.9,3.71479]
[1739776657006,0.274,2692.8,2692.1,3.71443]
[1739776657305,0.274,2692.8,2692.1,4.08958102]
[1739776657488,0.274,2692.8,2692.1,3.71443]
[1739776657692,0.274,2692.8,2692.2,0.03708015]
[1739776657874,0.274,2692.8,2692.2,3.75150015]
[1739776658069,0.274,2692.8,2692.3,3.71426]
[1739776658313,0.274,2692.8,2692.2,0.03708015]
[1739776658503,0.274,2692.8,2692.1,0.7851]
[1739776658504,0.63733,2692.7,2692.4,0.03797151]
[1739776658797,0.63733,2692.7,2692.1,0.7851]
[1739776658956,0.274,2692.8,2692.5,0.03797151]
[1739776659296,0.274,2692.8,2692.6,0.03797151]
[1739776659454,0.274,2692.8,2692.2,3.71434]
[1739776659656,0.274,2692.8,2692.3,3.75215151]
[1739776659874,0.274,2692.8,2692.3,0.03797151]
[1739776660075,0.274,2692.8,2692.2,7.4287]
[1739776660308,0.274,2692.8,2692.3,0.03797151]
[1739776660490,0.274,2692.8,2692.2,8.25008]
[1739776660687,0.274,2692.8,2692.2,4.53572]
[1739776660988,0.274,2692.8,2692.3,3.75225151]
[1739776661913,0.274,2692.8,2692.3,0.03797151]
[1739776662092,0.274,2692.8,2692.2,3.71441]
[1739776662292,0.274,2692.8,2692.3,0.03869349]
[1739776662487,0.274,2692.8,2692.2,3.71441]
[1739776662691,0.274,2692.8,2692.3,0.03869349]
[1739776662921,0.274,2692.8,2692.2,3.71441]
[1739776663079,0.274,2692.8,2692.4,0.03869349]
[1739776663280,0.274,2692.8,2692.2,3.71441]
[1739776663621,0.274,2692.8,2692.3,0.03869349]
[1739776663914,0.274,2692.8,2692.2,3.71441]
[1739776664075,0.274,2692.8,2692.4,0.03869349]
[1739776664278,0.274,2692.8,2692.1,0.7851]
[1739776664481,0.274,2692.8,2692.2,0.03869349]
[1739776665614,0.7604,2692.7,2692.2,0.03869349]
[1739776666017,0.7604,2692.7,2692.0,3.71461]
[1739776666205,0.7604,2692.7,2692.3,0.03869349]
[1739776666385,0.7604,2692.7,2692.0,4.536606]
[1739776666585,0.7604,2692.7,2692.4,0.03731158]
[1739776666816,0.7604,2692.7,2691.9,0.7904]
[1739776667088,0.274,2692.8,2691.7,3.71511]
[1739776667089,0.7604,2692.4,2691.7,3.71511]
[1739776667491,0.7604,2692.4,2691.4,4.50584]
[1739776667708,0.7604,2692.4,2691.9,3.71471]
[1739776668330,0.7604,2692.4,2691.9,3.71481]
[1739776668617,0.7604,2692.4,2691.9,4.50521]
[1739776668831,0.7604,2692.4,2691.9,4.955731]
[1739776669289,0.7604,2692.4,2692.0,3.71463]
[1739776670200,0.7604,2692.4,2692.1,3.71454]
[1739776670785,0.7604,2692.6,2692.1,3.71454]
[1739776671097,0.7604,2692.6,2691.9,4.955691]
[1739776671636,0.7604,2692.6,2691.9,8.670461]
[1739776671938,1.25847848,2692.6,2692.0,3.71466]
[1739776672133,0.7604,2692.6,2692.2,3.71434]
[1739776672500,0.273,2692.5,2692.3,3.71429]
[1739776672685,0.273,2692.5,2692.2,0.7904]
[1739776672885,0.273,2692.5,2692.2,4.50482]
[1739776673119,0.273,2692.5,2692.1,3.71456]
[1739776673303,0.273,2692.5,2692.1,0.821957]
[1739776673514,0.273,2692.5,2692.1,3.71457]
[1739776673703,0.273,2692.5,2692.2,3.75185208]
[1739776673897,0.273,2692.5,2692.2,0.03747208]
[1739776676486,0.273,2692.5,2692.0,4.50501]
[1739776676733,0.273,2692.5,2692.1,0.03738291]
[1739776677293,1.0334,2692.5,2692.1,0.03738291]
[1739776678393,1.0334,2692.5,2691.8,4.50297]
[1739776678692,1.0334,2692.5,2691.9,0.450297]
[1739776678894,1.0334,2692.5,2692.0,0.03739183]
[1739776679849,1.0334,2692.5,2691.7,3.0]
[1739776679990,1.0334,2692.5,2692.1,0.03739183]
[1739776680303,1.0334,2692.5,2692.2,0.03739183]
[1739776680491,1.0334,2692.5,2691.7,3.0]
[1739776680693,1.0334,2692.5,2691.8,0.03739183]
[1739776682395,0.7598,2692.4,2691.8,0.03739183]
[1739776687498,0.7598,2692.4,2691.3,3.71559]
[1739776687737,0.7598,2691.8,2691.4,0.03746315]
[1739776687900,0.272,2691.7,2691.4,0.03746315]
[1739776688110,0.272,2691.7,2691.1,3.0]
[1739776688316,0.272,2691.7,2691.2,0.03746315]
[1739776688906,0.7598,2691.6,2691.2,0.03746315]
[1739776689100,0.7598,2691.6,2691.0,3.0]
[1739776689301,0.7598,2691.6,2691.1,0.03611955]
[1739776691006,0.7598,2691.6,2691.0,3.0]
[1739776692461,0.7598,2691.6,2691.0,0.03611955]
[1739776692812,0.7598,2691.6,2690.9,3.0]
[1739776693035,0.7598,2691.6,2691.1,0.03611955]
[1739776693269,0.7598,2691.6,2690.6,0.7683]
[1739776693427,0.7598,2691.6,2691.2,0.03611955]
[1739776693613,0.7598,2691.6,2690.9,3.71619]
[1739776693813,0.7598,2691.6,2691.3,0.03611955]
[1739776694047,0.7598,2691.6,2690.9,3.71619]
[1739776694048,0.7598,2691.6,2690.9,3.71614]
[1739776694247,0.7598,2691.6,2691.4,0.03611955]
[1739776694423,0.7598,2691.6,2690.9,3.71614]
[1739776694620,0.7598,2691.6,2691.5,0.03611955]
[1739776694948,0.7604,2691.5,2690.6,0.7683]
[1739776695126,1.2184532,2691.5,2690.6,0.7683]
[1739776695312,1.2184532,2691.5,2690.7,3.71643]
[1739776695517,1.2184532,2691.5,2690.8,3.0]
[1739776695712,0.7604,2691.5,2690.6,0.7683]
[1739776695916,0.272,2691.5,2691.2,0.7864]
[1739776696218,0.272,2691.5,2691.2,4.50219]
[1739776696433,0.272,2691.5,2690.9,3.71612]
[1739776696640,0.272,2691.5,2690.8,0.7864]
[1739776696845,0.272,2691.5,2691.3,3.7156]
[1739776697015,0.7604,2691.8,2691.3,3.7156]
[1739776697210,0.272,2691.7,2691.3,7.43119]
[1739776697424,0.272,2691.7,2691.3,3.71559]
[1739776697657,0.272,2691.7,2691.3,3.71558]
[1739776698563,0.272,2691.7,2691.3,0.743143]
[1739776698755,0.272,2691.7,2691.2,3.71578]
[1739776698929,0.272,2691.7,2691.1,0.7864]
[1739776699134,0.272,2691.7,2691.0,3.71603]
[1739776699325,0.272,2691.7,2691.0,3.71601]
[1739776699524,0.272,2691.7,2691.0,3.716]
[1739776699724,0.272,2691.7,2691.1,3.0]
[1739776699919,0.272,2691.7,2691.0,7.43201]
[1739776700126,0.272,2691.7,2691.1,3.71592]
[1739776700345,0.272,2691.7,2691.0,3.716]
[1739776700544,0.7604,2691.6,2691.0,3.716]
[1739776700747,1.0324,2691.6,2691.0,3.716]
[1739776700926,1.0324,2691.6,2691.0,0.859731]
[1739776701125,1.0324,2691.6,2690.9,4.88116]
[1739776701360,0.272,2691.5,2691.4,3.71553]
[1739776703527,0.272,2691.5,2691.4,3.75296966]
[1739776703726,0.272,2691.7,2691.5,3.71534]
[1739776703927,0.272,2691.7,2691.4,3.71553]
[1739776704161,0.272,2691.7,2691.5,0.03743966]
[1739776705135,0.272,2691.7,2691.5,3.75280966]
[1739776705527,0.272,2691.7,2691.5,0.03743966]
[1739776705953,0.272,2691.7,2691.6,3.71526]
[1739776706263,0.272,2691.7,2691.6,3.71519]
[1739776706469,0.272,2691.7,2691.6,3.75262966]
[1739776707352,0.271,2691.8,2691.6,0.78424063]
[1739776707556,0.271,2691.8,2691.7,3.715]
[1739776707966,0.7604,2692.0,2691.7,3.75212742]
[1739776708170,0.7604,2692.3,2691.9,3.71475]
[1739776708338,0.271,2692.0,2691.9,3.71475]
[1739776708533,0.271,2692.0,2691.9,3.75188634]
[1739776709964,0.271,2692.1,2691.9,3.75188634]
[1739776711188,0.271,2692.1,2692.0,3.71471]
[1739776711698,0.271,2692.1,2692.0,0.03652085]
[1739776712051,0.271,2692.1,2691.8,3.71498]
[1739776712269,0.271,2692.1,2692.0,0.03652085]
[1739776712471,0.271,2692.1,2691.9,3.71479]
[1739776712790,0.271,2692.1,2692.0,0.03652085]
[1739776713296,0.271,2692.1,2692.0,3.75123085]
[1739776713637,0.271,2692.1,2692.0,0.03652085]